Cogmind - Beta 16 @@@ ROGUE MODE // 2025.11.10 @ 21:00:36 Player: ClassActJerk Result: Destroyed by Y-45 Defender with Heavy Assault Rifle Performance ------------- Evolutions (1) 500 Regions Visited (4) 800 Robots Destroyed (29) 145 Value Destroyed (573) 573 Prototype IDs (0) 0 Alien Tech Used (0) 0 Bonus (0) 0 TOTAL SCORE: 2018 Bonus ------- None Cogmind --------- Core Integrity 0/400 Matter 299/300 Energy 250/250 System Corruption 4% Temperature Cool (0) Movement Treading (160) Location -9/Storage Parts ------- > --- POWER (2) -------- Ion Engine > --- PROPULSION (2) --- Light Treads Light Treads > --- UTILITY (3) ------ Heat Sink Large Storage Unit Medium Armor Plating > --- WEAPON (2) ------- Beam Rifle Spread Laser > --- INVENTORY (15) --- Spread Laser Heavy Assault Rifle Grenade Launcher Mini Grenade Launcher Peak State ------------ > --- POWER ------------ Light Ion Engine Light Ion Engine > --- PROPULSION ------- Cesium-ion Thruster Cesium-ion Thruster > --- UTILITY ---------- Large Storage Unit Weight Redist. System > --- WEAPON ----------- Beam Rifle Light Assault Rifle > --- INVENTORY -------- Ion Engine Cesium-ion Thruster Cesium-ion Thruster Beam Rifle Light Assault Rifle Light Assault Rifle Grenade Launcher [Rating: 15] Favorites ----------- Power Ion Engine Engine Ion Engine Propulsion Aluminum Leg Treads Light Treads Leg Aluminum Leg Wheel Wheel Flight Unit Cesium-ion Thruster Utility Large Storage Unit Device Heat Sink Storage Large Storage Unit Protection Light Armor Plating Weapon Light Assault Rifle Energy Gun Beam Rifle Ballistic Gun Light Assault Rifle Build | -11 -10 -10 -9 -9 ------- Run | Yrd Mat Min Mat Sto Slots Evolved 2 | . . . 2 . Power 1 | . . . 1 . Propulsion . | . . . . . Utility 1 | . . . 1 . Weapon . | . . . . . Parts Attached 39 | 6 . 4 29 . Power 7 | 1 . 2 4 . Engine 7 | 1 . 2 4 . Core . | . . . . . Reactor . | . . . . . Propulsion 14 | 2 . . 12 . Treads 3 | . . . 3 . Leg 3 | 2 . . 1 . Wheel 2 | . . . 2 . Hover . | . . . . . Flight 6 | . . . 6 . Utility 7 | 1 . 1 5 . Device 2 | . . . 2 . Storage 3 | 1 . 1 1 . Processor . | . . . . . Hackware . | . . . . . Protection 2 | . . . 2 . Artifact . | . . . . . Weapon 11 | 2 . 1 8 . Energy Gun 5 | 1 . . 4 . Energy Cannon . | . . . . . Ballistic Gun 6 | 1 . 1 4 . Ballistic Cannon . | . . . . . Launcher . | . . . . . Special Weapon . | . . . . . Impact Weapon . | . . . . . Slashing Weapon . | . . . . . Piercing Weapon . | . . . . . Special Melee Weapon . | . . . . . Unidentified Prototypes . | . . . . . Parts Lost 13 | . . . 12 1 Power 4 | . . . 3 1 Propulsion 5 | . . . 5 . Utility 2 | . . . 2 . Weapon 2 | . . . 2 . Highest Loss Streak 4 | . . . 4 1 To Critical Strikes . | . . . . . Average Backups 4 | 1 1 5 3 4 Power . | . . 1 . . Propulsion . | . . . . . Utility . | . . . . . Weapon 3 | 1 1 3 3 4 Tool/Special . | . . . . . Unused Backups 7 | . . . 4 3 Power . | . . . . . Propulsion 4 | . . . 4 . Utility . | . . . . . Weapon 3 | . . . . 3 Tool/Special . | . . . . . Average Slot Usage (%) 87 | . 85 85 86 96 Engine 18 | . 14 14 18 18 Treads 4 | . . . 2 22 Leg 8 | . 28 28 5 . Wheel 1 | . . . 1 . Flight 4 | . . . 6 . Device 10 | . . . 12 11 Storage 11 | . 14 14 11 11 Protection 5 | . . . 5 11 Energy Gun 9 | . 14 14 5 22 Ballistic Gun 13 | . 14 14 16 . Peak Build Rating 15 | 6 6 6 15 12 Average Rating 9 | 3 6 6 9 11 On Entrance 6 | . 6 6 6 12 Avg Prop Armor Cover (%) . | . . . . . Naked Turns . | . . . . . Heaviest Build 44 | 12 12 17 44 44 Greatest Support 40 | 20 20 20 40 40 Greatest Overweight (x) 8 | . . . 8 1 Average Overweight (x) . | . . . 1 . Largest Inventory Capacity 15 | 8 8 10 15 15 Average Capacity 13 | 6 8 8 14 15 Most Carried 9 | 5 2 7 9 4 Average Carried 4 | 1 1 5 3 4 Final Capacity 15 | 8 8 10 15 15 Final Carried 5 | 1 2 5 4 4 Class Distribution -------------------- 67% | Scavenger-Mutant 32% | Mutant Dominant Class ---------------- Mutant | -10/Materials Mutant | -10/Mines Scavenger-Mutant | -9/Materials Scavenger-Mutant | -9/Storage Resources | -11 -10 -10 -9 -9 ----------- Run | Yrd Mat Min Mat Sto Matter Collected 744 | 225 . 107 377 35 Remotely . | . . . . . Salvage Created 787 | . . 138 614 35 Parts 57 | . . 17 40 . Haulers Intercepted . | . . . . . Recyclers Shooed 1 | . . . 1 . Parts Field Recycled . | . . . . . Retrieved Matter . | . . . . . Parts Self-Destructed . | . . . . . Prevented . | . . . . . Parts Restored . | . . . . . Kills | -11 -10 -10 -9 -9 ------- Run | Yrd Mat Min Mat Sto Combat Hostiles Destroyed 26 | . . 9 16 1 Guns 26 | . . 9 16 1 Classes Destroyed 5 | . . 1 4 . Builder 2 | . . . 2 . Recycler 1 | . . . 1 . Swarmer 16 | . . 9 7 . Grunt 6 | . . . 6 . Sentry 4 | . . . 3 1 Best Kill Streak 4 | . . 3 4 1 Combat Bots Only 4 | . . 3 4 1 Max Kills in Single Turn 2 | . . 2 1 1 Gunslinging 1 | . . 1 . . Exploded . | . . . . . Melee . | . . . . . Uniques/NPCs Destroyed . | . . . . . Combat | -11 -10 -10 -9 -9 -------- Run | Yrd Mat Min Mat Sto Hostile Shots Fired 240 | . . 62 160 18 Missed 51 | . . 13 36 2 Hits 189 | . . 49 124 16 Projectile 189 | . . 49 124 16 Critical Strikes 2 | . . . 2 . Damage Taken 1971 | . . 384 1346 241 Core 464 | . . 64 307 93 Absorbed by Shields . | . . . . . Regen/Repaired (Parts) 95 | . . . 95 . Core Remaining (%) 87 | 100 . 74 . . Volleys Fired 94 | . . 18 71 5 Largest 2 | . . 2 2 2 Hottest 121 | . . 70 121 121 Shots Fired 182 | . . 36 136 10 Gun 182 | . . 36 136 10 Cannon . | . . . . . Launcher . | . . . . . Special . | . . . . . Kinetic 115 | . . 18 97 . Thermal 67 | . . 18 39 10 Explosive . | . . . . . Electromagnetic . | . . . . . Robot Hit Streak 16 | . . 5 12 16 Robot Miss Streak 4 | . . 4 3 1 Penetration Max . | . . . . . Secondary Targets 5 | . . 2 3 . Max Gunslinging Chain 1 | . . 1 1 . Shots Hit Robots 116 | . . 21 87 8 Core Hits 55 | . . 9 41 5 Critical Kills . | . . . . . Critical Parts Destroyed . | . . . . . Critical Strikes 3 | . . 1 1 1 Burn 3 | . . 1 1 1 Melee Attacks . | . . . . . Impact . | . . . . . Slashing . | . . . . . Piercing . | . . . . . Sneak Attacks . | . . . . . Combat Hostiles . | . . . . . Follow-up Attacks . | . . . . . Damage Inflicted 1373 | . . 281 951 141 Guns 1371 | . . 281 949 141 Cannons . | . . . . . Explosions . | . . . . . Melee . | . . . . . Ramming 2 | . . . 2 . Kinetic 716 | . . 145 571 . Thermal 655 | . . 136 378 141 Explosive . | . . . . . Electromagnetic . | . . . . . Impact . | . . . . . Slashing . | . . . . . Piercing . | . . . . . Highest Corruption 4 | . . . 4 4 Average Corruption 3 | . . . 3 4 Corruption Purged . | . . . . . Corruption Blocked . | . . . . . Effects 11 | . . . 6 5 Message Errors 1 | . . . . 1 Matter Fused 4 | . . . 3 1 Heat Flow Errors 3 | . . . 1 2 Energy Discharges 1 | . . . . 1 Parts Rejected 1 | . . . 1 . Alerts 1 | . . . 1 . Overload Shots . | . . . . . Overflow Damage . | . . . . . Projectiles . | . . . . . Explosions . | . . . . . Melee . | . . . . . Knockbacks . | . . . . . Impact . | . . . . . Kinetic . | . . . . . Secondary . | . . . . . Self-Inflicted Damage . | . . . . . Shots . | . . . . . Rammed . | . . . . . Targets Rammed 2 | . . . 2 . Kicked 2 | . . . 2 . Crushed . | . . . . . Highest Temperature 389 | . . 72 389 223 Average Temperature 97 | . . 28 125 92 Received Heat Transfer 591 | . . . 528 63 Effects 5 | . . . 5 . Energy Bleed 1 | . . . 1 . Interference 4 | . . . 4 . Siege Activations . | . . . . . Martial Activations . | . . . . . Shielding Activations . | . . . . . Robots Disrupted . | . . . . . Combat Hostiles . | . . . . . Robots Corrupted . | . . . . . Combat Hostiles . | . . . . . Parts Fried . | . . . . . Impact Corruptions . | . . . . . Robots Melted . | . . . . . Combat Hostiles . | . . . . . Parts Melted 4 | . . 2 2 . Heat Transferred 1732 | . . 481 946 305 Parts Sabotaged . | . . . . . Parts Stolen . | . . . . . Parts Stripped . | . . . . . Power Chain Reactions . | . . . . . Alert | -11 -10 -10 -9 -9 ------- Run | Yrd Mat Min Mat Sto Maximum Alert Level . | . . . . . Low Security (%) 100 | 100 100 100 100 100 Level 1 . | . . . . . Level 2 . | . . . . . Level 3 . | . . . . . Level 4 . | . . . . . Level 5 . | . . . . . High Security . | . . . . . Max Security . | . . . . . Peak Influence 120 | . . 120 64 30 Initial 27 | . . . 27 9 Average 19 | . . 60 15 3 Influence Increases 640 | . . 210 400 30 Destroy 0b10 Robot/C 520 | . . 180 320 20 Destroy 0b10 Robot/NC 15 | . . . 15 . Destroy Leader 100 | . . 30 60 10 Successful Hack 5 | . . . 5 . Influence Decreases 640 | . . 140 448 52 Entered New Map 56 | . . . 43 13 Time Decay 511 | . . 140 332 39 Lost Part 73 | . . . 73 . Squads Dispatched . | . . . . . Investigation . | . . . . . Extermination . | . . . . . Reinforcement . | . . . . . Assault . | . . . . . Garrison . | . . . . . Intercept . | . . . . . Searches Triggered . | . . . . . Construction Impeded . | . . . . . Haulers Reinforced . | . . . . . Active Scanning Responses . | . . . . . Cargo Convoy Interrupts . | . . . . . Stealth | -11 -10 -10 -9 -9 --------- Run | Yrd Mat Min Mat Sto Distress Signals 4 | . . . 4 . Communications Jammed . | . . . . . Distress Signals . | . . . . . Times Spotted 36 | . . 9 25 2 Peak Tracking Total 5 | . . 3 5 1 Tactical Retreats . | . . . . . Traps | -11 -10 -10 -9 -9 ------- Run | Yrd Mat Min Mat Sto Traps Triggered 2 | . . . 2 . Indirectly . | . . . . . Trap Hack Attempts . | . . . . . Triggered . | . . . . . Disarmed . | . . . . . Reprogrammed . | . . . . . Reused . | . . . . . Traps Extracted . | . . . . . Installed . | . . . . . Triggered . | . . . . . Machines | -11 -10 -10 -9 -9 ---------- Run | Yrd Mat Min Mat Sto Machines Disabled . | . . . . . Max in Single Turn . | . . . . . Machines Repaired . | . . . . . Machines Dismantled . | . . . . . Machines Sabotaged . | . . . . . Overloaded Fab Kills . | . . . . . Hacking | -11 -10 -10 -9 -9 --------- Run | Yrd Mat Min Mat Sto Machines Accessed 1 | . . . 1 . Terminals . | . . . . . Fabricators . | . . . . . Repair Stations 1 | . . . 1 . Recycling Units . | . . . . . Scanalyzers . | . . . . . Garrison Access . | . . . . . Total Hacks 7 | . . . 7 . Successful 6 | . . . 6 . Failed 1 | . . . 1 . Catastrophic . | . . . . . Database Lockouts . | . . . . . Manual 1 | . . . . 1 Terminals . | . . . . . Fabricators . | . . . . . Repair Stations 7 | . . . 7 . Recycling Units . | . . . . . Scanalyzers . | . . . . . Garrison Access . | . . . . . Terminal Hacks . | . . . . . Fabricator Hacks . | . . . . . Repair Station Hacks 6 | . . . 6 . Scan Component 3 | . . . 3 . Repair 3 | . . . 3 . Recycling Unit Hacks . | . . . . . Scanalyzer . | . . . . . Garrison Access Hacks . | . . . . . Unauthorized Hacks . | . . . . . Terminals . | . . . . . Fabricators . | . . . . . Repair Stations . | . . . . . Recycling Units . | . . . . . Scanalyzers . | . . . . . Garrison Access . | . . . . . Data Cores Recovered . | . . . . . Used . | . . . . . Hacking Detections 1 | . . . 1 . Full Trace Events . | . . . . . Feedback Events . | . . . . . Feedback Blocked . | . . . . . Robot Schematics Acquired . | . . . . . Robots Built . | . . . . . Authchips . | . . . . . Time . | . . . . . Total Robot Build Rating . | . . . . . Part Schematics Acquired . | . . . . . Parts Built . | . . . . . Authchips . | . . . . . Time . | . . . . . Total Part Build Rating . | . . . . . Part Studies Acquired . | . . . . . Parts Repaired 3 | . . . 3 . Time 78 | . . . 78 . Parts Recycled . | . . . . . Recycled Matter . | . . . . . Retrieved Matter . | . . . . . Retrieved Components . | . . . . . Parts Scanalyzed . | . . . . . Part Schematics Acquired . | . . . . . Parts Damaged . | . . . . . Bothacking | -11 -10 -10 -9 -9 ------------ Run | Yrd Mat Min Mat Sto Used RIF Installer . | . . . . . Robots Hacked . | . . . . . Non-combat . | . . . . . Combat . | . . . . . Robot Hacks Applied . | . . . . . Relay Couplers Released . | . . . . . Fabnet Peak Effective % . | . . . . . Robots Rewired . | . . . . . Allies Hacked . | . . . . . Hacks Repelled . | . . . . . Allies | -11 -10 -10 -9 -9 -------- Run | Yrd Mat Min Mat Sto Total Allies . | . . . . . Largest Group . | . . . . . Highest-Rated Group . | . . . . . Highest-Rated Ally . | . . . . . Total Orders . | . . . . . Ally Attacks . | . . . . . Total Damage . | . . . . . Kills . | . . . . . Allies Corrupted . | . . . . . Allies Melted . | . . . . . Intel | -11 -10 -10 -9 -9 ------- Run | Yrd Mat Min Mat Sto Active Infowar (turns) . | . . . . . Robot Analysis Total . | . . . . . Derelict Logs Recovered 1 | . . 1 . . Drone Launches . | . . . . . Drone Recoveries . | . . . . . Exploration | -11 -10 -10 -9 -9 ------------- Run | Yrd Mat Min Mat Sto Turns Passed 2209 | 43 54 292 1513 307 Spaces Moved 936 | 32 45 182 567 110 Core 24 | 19 . . 5 . Treads 189 | . . . 79 110 Legs 420 | 13 45 182 180 . Wheels 79 | . . . 79 . Hover . | . . . . . Flight 224 | . . . 224 . Fastest Speed 50 | 50 120 120 95 160 Average Speed 162 | 78 120 120 177 202 Slowest Speed 450 | 120 120 120 450 240 Overloaded Moves . | . . . . . Propulsion Burnouts . | . . . . . Robots Hopped . | . . . . . Potential Cave-ins . | . . . . . Cave-ins Triggered . | . . . . . Exploration Rate (%) 24 | 3 13 38 49 20 Regions Visited 4 Branch Regions 2 Pre-discovered Areas . | . . . . . Known Exits Taken . | . . . . . Unknown Exits Taken 4 | 1 1 1 1 . Scrap Searched 1 | . . 1 . . Spaces Dug . | . . . . . Terrain Destroyed . | . . . . . Melee . | . . . . . Projectile . | . . . . . AOE . | . . . . . Terrain Rammed . | . . . . . Walls Destroyed . | . . . . . Machines Disabled . | . . . . . Actions | -11 -10 -10 -9 -9 --------- Run | Yrd Mat Min Mat Sto Total 1459 | 49 45 219 961 185 Wait 319 | 7 . 7 235 70 Move 932 | 31 44 181 566 110 Hop . | . . . . . Pick Up 48 | 5 1 6 36 . Fast Attach 2 | 2 . . . . Attach 30 | 4 . 1 25 . Detach . | . . . . . Swap 11 | . . 3 8 . Drop 21 | . . 3 18 . Fire 94 | . . 18 71 5 Melee . | . . . . . Ram . | . . . . . Kick 2 | . . . 2 . Crush . | . . . . . Escape Stasis . | . . . . . Rewire . | . . . . . Trap . | . . . . . Miscellaneous . | . . . . . Route ------- -11/Scrapyard -10/Materials -10/Mines -9/Materials -9/Storage History --------- Turn | Location | Event 24 | -11/Scrapyard | Discovered new exit (range 12) 44 | -11/Scrapyard | Entered Materials 89 | -10/Materials | Discovered new exit (range 8) 98 | -10/Materials | Entered Mines 300 | -10/Mines | Build established: Mutant 358 | -10/Mines | Learned Materials security intel 360 | -10/Mines | Discovered new exit (range 5) 390 | -10/Mines | Entered Materials 390 | -9/Materials | Evolved 2 slots: Power x1, Utility x1 577 | -9/Materials | Lost 3 parts (2n1w) 730 | -9/Materials | Lost 4 parts (2p2n) 1048 | -9/Materials | Build established: Scavenger-Mutant 1344 | -9/Materials | Repaired Lgt. Armor Plating 1370 | -9/Materials | Repaired Lgt. Ion Engine 1403 | -9/Materials | Repaired Lgt. Armor Plating 1451 | -9/Materials | Core integrity fell below 50% 1857 | -9/Materials | Discovered new exit (range 7) 1903 | -9/Materials | Entered Storage 2112 | -9/Storage | Core integrity fell below 20% 2210 | -9/Storage | Destroyed by Y-45 Defender with Heavy Assault Rifle Last Messages --------------- 01895_ System corrupted: IFF burst signal emitted. LOCATION=UNKNOWN GOAL=ESCAPE 01955_ System corrupted: Matter fused (-6). 02015_ System corrupted: Energy discharge (-120). 02071_ System corrupted: Heat flow error (+149). 02089_ U6MQC L02 #RXG5 66QMLRIOEU 02105_ System corrupted: Heat flow error (+246). 02111_ Ion Engine destroyed. 02125_ Y-45 Defender suffers critical hit (Burn). 02133_ Y-45 Defender heat short circuits Hvy. Assault Rifle. 02134_ Y-45 Defender destroyed. 02139_ Acquired 35 matter. 02177_ Connecting with Door Terminal... 02177_ Current location identified: Storage 02188_ Connecting with Terminal... Map ----- +----------------------------------------------------+ | ???# #??????????????????????????????? | | ???# #??????????????????????????????? | | ???# #??????????????????????????????? | | ???# #??????????????????????????????? | | ???# #??????????????????????????????? | | ???# #??????????????????????????????? | | ???# #??????????????????????????????? | | ???# #??????????????????????????????? | | ???# #??????????????????????????????? | | ???# #??????????????????????????????? | | ???# #??????????????????????????????? | | ???# #??????????????????????????????? | | ???# ################???????????????? | | ???# ??????????????? | | ???# ??????????????? | | ???# ??????????????? | | ???#### ############?????????????????? | | ##### # ##########???????????????????? | | # # # #???????????????????? | | # """ # # #???????????????????? | | # """ # # """ #???????????????????? | | # """ # # """ #???????????????????? | | # # # """ #???????????????????? | | # """ # # """ #???????????????????? | | # """ # # """ #???????????????????? | | # """ + + @ #???????????????????? | | # # ^# Y #???????????????????? | | ####### ##"T"### #???????????????????? | | ?????# #####???#???????????????????? | | ?????# #???????????????????????????? | | ?????# T #???????????????????????????? | | ?????# #???????????????????????????? | | ?????## ##???????????????????????????? | | ??????# #????????????????????????????? | | ??????# #????????????????????????????? | | ??????# #????????????????????????????? | | ??????# ##???????????????????????????? | | ??????# T#???????????????????????????? | | ??????# ##???????????????????????????? | | ??????""""????????????????????????????? | | ??????????????????????????????????????? | | ??????????????????????????????????????? | | ??????????????????????????????????????? | | ??????????????????????????????????????? | | ??????????????????????????????????????? | | ??????????????????????????????????????? | | ??????????????????????????????????????? | | ??????????????????????????????????????? | | ??????????????????????????????????????? | | ??????????????????????????????????????? | +----------------------------------------------------+ Best States ------------- Heat Dissipation 38 Energy Generation 15 Energy Capacity 400 Matter Stores 300 Matter Capacity 300 Sight Range 16 Terrain Scan Density 10 Additional Mass Support 6 Armor Coverage 225 Evasion (%) 55 Recoil Reduction 2 Item Schematics ----------------- None Robot Schematics ------------------ None Fabricated ------------ Nothing Repaired ---------- Lgt. Ion Engine | 35% | -9/Materials Lgt. Armor Plating | 23% | -9/Materials Studied --------- None Alien Tech Used ----------------- None Achievements -------------- None Challenges ------------ None Game ------ Seed TowerMetaPick Manual? 0 Play Time 00:17:12 Cumulative 18.7 hours Start 2025.11.10 @ 20:44:40 End 2025.11.10 @ 21:00:36 Sessions 1 Manual Loads 0 Difficulty Rogue Special Mode None Game No. 54 Rogue 54 Adventurer 0 Explorer 0 Win Type - Total 0 Types 0/0/0/0/0/0/0/0/0/0 Lore% 5 Gallery% 18 Achievement% 13 Wizard Run 0 Options --------- Layout 1 ASCII 0 Keyboard 0 Movement Mouse Keybinds 0 Fullscreen 1 Font 24/Terminus Map View 50x35 Zoom Use 0% Tactical HUD 1 Map Filters NONE Filters NONE Steam 1 RUN: 86148a55-553d-4d54-bc05-7e1ad8e26026